fUSD/lending_fUSD_20240814
["ID","MTS","AMOUNT","RATE_DAILY","PERIOD"]
[334930146,1723654232795,-497.86808237,0.00010899,2]
[334930148,1723654232804,-189.1551793,0.000109,2]
[334930150,1723654232813,-157.39258195,0.000109,2]
[334930151,1723654232822,-37.80534372,0.00010959,2]
[334930152,1723654232833,-212.19465628,0.00010959,2]
[334930153,1723654232842,-150.0,0.00010959,2]
[334930154,1723654232851,-1804.82349712,0.00010959,2]
[334930155,1723654232866,-195.17650288,0.00010959,2]
[334930156,1723654232875,-155.0,0.00010982,2]
[334930157,1723654232884,-155.67856311,0.00010983,2]
[334930158,1723654232893,-64.23493401,0.00010984,2]
[334930159,1723654232904,-239.77387153,0.00010984,2]
[334930160,1723654232913,-10.563934,0.0001099,2]
[334930161,1723654232924,-2366.21426732,0.0001099,2]
[334930162,1723654232933,-155.09214225,0.00010993,2]
[334930163,1723654232942,-896.9095135,0.00010994,2]
[334930164,1723654232951,-2646.01299211,0.00010994,2]
[334930165,1723654232962,-1357.62885533,0.00010994,2]
[334930170,1723654238513,-1.51995352,0.000109,2]
[334930171,1723654238524,-1628.40183292,0.000109,2]
[334930172,1723654238535,-1269.92220826,0.00010994,2]
[334930173,1723654238544,-27918.2310466,0.00010994,2]
[334930174,1723654238554,-336.70631366,0.00010997,2]
[334930175,1723654238563,-3529.07436719,0.00010998,2]
[334930176,1723654238582,-5890.0,0.00010998,2]
[334930177,1723654238594,-3524.79836481,0.00010998,2]
[334930178,1723654238607,-9545.83447528,0.00010998,2]
[334930179,1723654238617,-1061.29187517,0.00010999,3]
[334930180,1723654238627,-6052.21590189,0.00010999,2]
[334930181,1723654238715,-717.30736,0.00010999,2]
[334930182,1723654238771,-573.2828905,0.00010999,2]
[334930222,1723654240521,-7071.08,0.00010999,2]
[334930223,1723654242107,-3034.40194767,0.00010999,2]
[334930306,1723654243090,-303623.16147491,0.00010999,2]
[334930309,1723654243103,-15136.22566607,0.00010999,2]
[334930311,1723654243112,-435.95315931,0.00010999,2]
[334930312,1723654243122,-500.0,0.00010999,2]
[334930314,1723654243131,-605.87868122,0.00010999,2]
[334930315,1723654243140,-583.0,0.00011,2]
[334930316,1723654243150,-10067.59394636,0.00011,2]
[334930339,1723654243515,-55149.29148208,0.00011,2]
[334930341,1723654243527,-1294.87111487,0.00011,2]
[334930430,1723654244378,-5898.3,0.00011,2]
[334930433,1723654244396,-1881.97364706,0.00011,2]
[334930809,1723654247996,-525.0,0.00011,2]
[334930811,1723654248006,-952.12565,0.00011,2]
[334930822,1723654248108,-413.0,0.00011,2]
[334931380,1723654659390,446.39,8.28e-05,2]
[334931385,1723655108099,424.07,8.219e-05,2]
[334931440,1723655431557,-572.13348406,9.941e-05,2]
[334931441,1723655432201,417.167595,9.891e-05,2]
[334931449,1723655437722,-402.36004513,0.00010034,2]
[334931450,1723655437733,-69.12995487,0.00010034,2]
[334931451,1723655437742,-304.00880554,0.00010077,2]
[334931452,1723655437751,-250.0,0.00010078,2]
[334931453,1723655437761,-445.7598818,0.00010098,2]
[334931454,1723655437780,-2173.28413778,0.00010098,2]
[334931455,1723655437948,-1367.5905978,0.00010098,2]
[334931456,1723655437959,-437.70943335,0.00010098,2]
[334931457,1723655437970,-3022.99999999,0.00010098,2]
[334931625,1723655439612,-508.47077684,0.00010098,2]
[334931628,1723655439637,-15944.18517244,0.00010098,2]
[334931630,1723655439647,-1000.0,0.00010099,2]
[334931632,1723655439656,-155.0,0.0001031,2]
[334931634,1723655439666,-195.2,0.00010311,2]
[334931636,1723655439676,-424.07,0.00010478,2]
[334931638,1723655439685,-491.94,0.00010852,2]
[334931639,1723655439694,-623.43,0.00010889,2]
[334931641,1723655439703,-182.01875209,0.00010889,2]
[334931643,1723655439713,-4580.7813,0.00010899,2]
[334931645,1723655439722,-7666.4647,0.00010899,2]
[334931647,1723655439731,-150.0,0.00010899,2]
[334931649,1723655439740,-156.63362033,0.000109,2]
[334931651,1723655439750,-4119.98276835,0.000109,2]
[334931653,1723655439760,-439.13457729,0.000109,2]
[334931655,1723655439770,-250.0,0.00010959,2]
[334931657,1723655439779,-2000.0,0.00010959,2]
[334931659,1723655439789,-25655.9947829,0.00010994,2]
[334931661,1723655439799,-1950.0126799,0.00010994,2]
[334931663,1723655439811,-812.0838362,0.00010994,2]
[334931665,1723655439821,-4774.8140301,0.00010994,2]
[334931667,1723655439831,-168.35315685,0.00010997,2]
[334931669,1723655439840,-11263.24104225,0.00010998,2]
[334931671,1723655439851,-12996.6539756,0.00010999,2]
[334931674,1723655439869,-14014.10550839,0.00010999,2]
[334931676,1723655439879,-500.0,0.00010999,2]
[334931678,1723655439888,-500.0,0.00010999,2]
[334931680,1723655439899,-500.0,0.00010999,2]
[334931682,1723655439909,-465.80391501,0.00010999,2]
[334931684,1723655439919,-27976.74913155,0.00011,2]
[334931687,1723655439947,-49633.9883586,0.00011,2]
[334931689,1723655439958,-37741.0451726,0.00011,2]
[334931905,1723655442566,-3049.11127062,0.00011,2]
[334931962,1723655443230,-1774.06526718,0.00011,2]
[334931991,1723655443456,-3812.01029401,0.00011,2]
[334931993,1723655443465,-250.0,0.00011,2]
[334931995,1723655443475,-2657.34238407,0.00011,2]
[334932238,1723655445906,-656.9760301,0.00011,2]
[334933237,1723655592513,389.58,9.342e-05,2]
[334933238,1723655701495,155.0,9.899e-05,2]
[334933243,1723656136626,370.1,8.219e-05,2]
[334933244,1723656236255,800.0,9.686e-05,2]
[334933246,1723656288743,8597.69,9.679e-05,2]
[334933249,1723656428915,156.16,9.647e-05,2]
[334933258,1723656450454,590.27,9.666e-05,2]
[334933260,1723656491055,250.0,9.684e-05,2]
[334933261,1723656525349,243.25458866,9.899e-05,2]
[334933296,1723656553703,235.74,9.686e-05,2]
[334933298,1723656584868,1053.91,9.731e-05,2]
[334933302,1723656599329,351.59,8.219e-05,2]
[334933303,1723656621882,3995.33570159,9.899e-05,2]
[334933315,1723656631808,-200.0,9.92e-05,2]
[334933316,1723656631817,-200.0,9.92e-05,2]
[334933317,1723656631826,-153.0,9.943e-05,2]
[334933318,1723656631837,-1166.83678172,9.943e-05,2]
[334933319,1723656632030,-419.73339032,9.943e-05,2]
[334933320,1723656632039,-155.0,9.943e-05,2]
[334933321,1723656632049,-892.72350459,9.949e-05,2]
[334933322,1723656632058,-215.2327978,9.999e-05,2]
[334933323,1723656632067,-300.0,9.999e-05,2]
[334933324,1723656632077,-550.0,0.0001,2]
[334933325,1723656632086,-89.00112606,0.0001,2]
[334933326,1723656632098,-593.77656,0.0001,2]
[334933335,1723656637872,-5403.79429818,9.962e-05,2]
[334933336,1723656637882,-5947.54050294,0.0001,2]
[334933337,1723656637898,-369.681811,0.0001,2]
[334933338,1723656637907,-170.97176055,0.0001,2]
[334933339,1723656637919,-1940.86541603,0.0001,2]
[334933340,1723656637928,-1201.76,0.00010009,2]
[334933341,1723656637937,-155.0,0.00010026,2]
[334933342,1723656637946,-203.87566736,0.00010026,2]
[334933343,1723656637956,-243.84,0.00010072,2]
[334933344,1723656637965,-155.0,0.00010097,2]
[334933345,1723656637974,-236.34424982,0.00010206,2]
[334933346,1723656637983,-455.63,0.00010207,2]
[334933347,1723656637993,-649.86351287,0.00010264,2]
[334933348,1723656638002,-155.0,0.00010265,2]
[334933349,1723656638011,-365.80180037,0.00010265,2]
[334933350,1723656638020,-1074.67923523,0.00010276,2]
[334933351,1723656638029,-200.0,0.00010277,2]
[334933352,1723656638038,-255.19609183,0.00010462,2]
[334933353,1723656638047,-155.0,0.00010462,2]
[334933354,1723656638056,-155.0,0.00010462,2]
[334933355,1723656638066,-164.40260801,0.00010462,2]
[334933356,1723656638075,-155.10298167,0.00010462,2]
[334933357,1723656638085,-351.59,0.00010463,2]
[334933358,1723656638094,-218.91005949,0.00010471,2]
[334933359,1723656638103,-155.0,0.00010713,2]
[334933360,1723656638113,-155.0,0.00010799,2]
[334933361,1723656638122,-155.0,0.00010799,2]
[334933362,1723656638131,-600.74422133,0.00010799,2]
[334933363,1723656638142,-11499.0,0.000108,5]
[334933364,1723656638151,-687.02501385,0.00010852,2]
[334933365,1723656638161,-159.60847032,0.00010852,2]
[334933366,1723656638170,-155.0,0.00010852,2]
[334933367,1723656638180,-156.16,0.00010853,2]
[334933368,1723656638189,-155.0,0.00010861,2]
[334933369,1723656638198,-253.79099211,0.00010861,2]
[334933370,1723656638208,-289.57921824,0.00010861,2]
[334933371,1723656638217,-155.0,0.00010861,2]
[334933372,1723656638227,-347.69615481,0.00010861,2]
[334933373,1723656638238,-155.0,0.00010861,2]
[334933374,1723656638249,-155.0,0.00010861,2]
[334933375,1723656638257,-380.32741541,0.00010861,2]
[334933376,1723656638267,-1039.76265419,0.00010861,2]
[334933377,1723656638279,-99.35911141,0.00010861,2]
[334933378,1723656638289,-2502.58566001,0.00010862,2]
[334933379,1723656638299,-203.41395605,0.00010862,2]
[334933380,1723656638309,-432.47832469,0.00010862,2]
[334933381,1723656638319,-219.8148101,0.00010863,2]
[334933382,1723656638329,-493.59808335,0.00010863,2]
[334933383,1723656638339,-485.18668102,0.00010863,2]
[334933384,1723656638348,-155.0,0.00010863,2]
[334933385,1723656638358,-367.87511774,0.00010863,2]
[334933386,1723656638367,-155.0,0.00010863,2]
[334933387,1723656638377,-155.0,0.00010863,2]
[334933388,1723656638387,-155.0,0.00010863,2]
[334933389,1723656638399,-155.0,0.00010863,2]
[334933390,1723656638410,-264.49036255,0.00010863,2]
[334933391,1723656638420,-328.2488375,0.00010864,2]
[334933392,1723656638430,-3937.88564935,0.00010864,2]
[334933393,1723656638440,-3937.88564935,0.00010864,2]
[334933394,1723656638451,-155.94281336,0.00010864,2]
[334933395,1723656638460,-155.0,0.00010865,2]
[334933397,1723656638469,-357.45302385,0.00010865,2]
[334933398,1723656638479,-155.0,0.00010865,2]
[334933399,1723656638489,-155.0,0.00010865,2]
[334933400,1723656638499,-155.0,0.00010866,2]
[334933401,1723656638509,-155.0,0.00010866,2]
[334933402,1723656638518,-304.00880554,0.00010867,2]
[334933403,1723656638528,-155.0,0.00010867,2]
[334933405,1723656638538,-247.4626043,0.00010868,2]
[334933406,1723656638547,-155.0,0.00010868,2]
[334933407,1723656638557,-528.91996067,0.00010868,2]
[334933408,1723656638566,-653.64489815,0.00010868,2]
[334933409,1723656638575,-1298.23330788,0.00010869,2]
[334933410,1723656638585,-155.0,0.00010869,2]
[334933411,1723656638594,-193.35040018,0.0001087,2]
[334933412,1723656638604,-155.0,0.0001087,2]
[334933413,1723656638613,-270.58164358,0.00010871,2]
[334933414,1723656638622,-800.0,0.00010896,2]
[334933415,1723656638632,-197.1386879,0.00010899,2]
[334933416,1723656638643,-306.4721,0.000109,2]
[334933417,1723656638652,-1083.96951147,0.000109,2]
[334933418,1723656638664,-320.03505152,0.000109,2]
[334933419,1723656638676,-1795.75703701,0.000109,2]
[334933420,1723656638686,-1136.2729,0.000109,2]
[334933421,1723656638695,-5030.8392,0.000109,2]
[334933422,1723656638704,-1416.6197,0.000109,2]
[334933423,1723656638714,-156.63362031,0.000109,2]
[334933424,1723656638724,-493.199,0.000109,2]
[334933425,1723656638733,-2224.2235,0.000109,2]
[334933426,1723656638743,-468.19418939,0.000109,2]
[334933427,1723656638755,-14962.96234,0.000109,2]
[334933428,1723656638767,-14058.47217061,0.000109,2]
[334933429,1723656638777,-438.08,0.000109,2]
[334933430,1723656638786,-3767.36282939,0.000109,2]
[334933431,1723656638805,-155.0,9.962e-05,2]
[334933432,1723656638814,-1111.25068988,0.000109,2]
[334933433,1723656638826,-464.27999997,0.000109,2]
[334933434,1723656638839,-2157.10648076,0.000109,2]
[334933435,1723656638848,-782.89351914,0.000109,2]
[334933436,1723656638859,-762.69359376,0.000109,2]
[334933437,1723656638870,-954.4128871,0.000109,2]
[334933438,1723656638880,-2064.67886749,0.000109,2]
[334933439,1723656638890,-1086.61452428,0.000109,2]
[334933440,1723656638906,-190.27618663,0.0001095,2]
[334933442,1723656639741,-297.48958849,9.999e-05,2]
[334933443,1723656639751,-2733.94892063,0.0001095,2]
[334933444,1723656639763,-5216.98818078,0.0001095,2]
[334933445,1723656639772,-599.6,0.00010959,2]
[334933446,1723656639782,-155.0,0.00010979,2]
[334933447,1723656639792,-155.0,0.00010989,2]
[334933448,1723656639801,-175.39061922,0.0001099,2]
[334933449,1723656639813,-723.49237106,0.0001099,2]
[334933450,1723656639847,-643.23488832,0.0001099,2]
[334933451,1723656639863,-457.42449955,0.0001099,2]
[334933452,1723656639874,-1781.42589256,0.0001099,2]
[334933453,1723656639886,-2573.95686119,0.0001099,2]
[334933454,1723656639901,-1382.41012245,0.0001099,2]
[334933455,1723656639910,-156.76856296,0.00010993,2]
[334933456,1723656639919,-151.21894003,0.00010993,2]
[334933457,1723656639930,-4140.27821322,0.00010993,2]
[334933458,1723656639941,-1444.77144708,0.00010993,2]
[334933459,1723656639979,-622.98905893,0.00010993,2]
[334933460,1723656639991,-4174.89541629,0.00010993,2]
[334933461,1723656640000,-3875.44196721,0.00010993,2]
[334933462,1723656640010,-797.8418818,0.00010994,2]
[334933463,1723656640021,-1217.9951693,0.00010994,2]
[334933464,1723656640033,-2183.272839,0.00010994,2]
[334933465,1723656640046,-150.01,0.00010999,2]
[334933466,1723656640057,-420.0,0.00010999,2]
[334933467,1723656640068,-155.0,0.00010999,2]
[334933468,1723656640079,-497.75362946,0.00010999,2]
[334933469,1723656640090,-4018.23997006,0.00011,2]
[334933470,1723656640104,-2806.8,0.00011,2]
[334933471,1723656640124,-1502.36748721,0.00011,2]
[334933706,1723656643174,-164.37927092,0.0001086,2]
[334933708,1723656643187,-155.0,0.00010861,2]
[334933709,1723656643199,-323.84011008,0.00011,2]
[334933710,1723656643213,-1201.87353666,0.00011,2]
[334933711,1723656643227,-682.39886699,0.00011,2]
[334933712,1723656643245,-1196.04688222,0.00011,2]
[334933713,1723656643259,-5242.74940921,0.00011,2]
[334933714,1723656643272,-5971.9,0.00011,2]
[334933715,1723656643286,-1500.0,0.00011,2]
[334933716,1723656643300,-1385.902562,0.00011,2]
[334933717,1723656643313,-302.1204009,0.00011,2]
[334933718,1723656643328,-562.41626868,0.00011,2]
[334933722,1723656644110,-370.19267968,0.00011,2]
[334933723,1723656644124,-21986.27470492,0.00011,2]
[334933724,1723656644137,-10877.31968114,0.00011,2]
[334933725,1723656644152,-6855.90067227,0.00011,2]
[334933726,1723656644164,-651.33802245,0.00011,2]
[334933727,1723656644175,-1286.6550992,0.00011,2]
[334933728,1723656644187,-2627.76022133,0.00011,2]
[334933729,1723656644198,-33015.41860167,0.00011,2]
[334933730,1723656644395,-28619.65095822,0.00011,2]
[334933731,1723656644425,-597.87924,0.00011,2]
[334933732,1723656644439,-22420.08937347,0.00011,2]
[334933733,1723656644450,-5983.9,0.00011,2]
[334933734,1723656644462,-704.09202264,0.00011,2]
[334933735,1723656644473,-6654.157102,0.00011,2]
[334933736,1723656644484,-1224.5387,0.00011,2]
[334933737,1723656644495,-1738.02113,0.00011,2]
[334933738,1723656644507,-7951.26206587,0.00011,2]
[334933744,1723656645971,-155.0,0.00010861,2]
[334933745,1723656645980,-18592.02763147,0.00011,2]
[334933746,1723656645992,-2059.0,0.00011,2]
[334933747,1723656646003,-1780.43176568,0.00011,2]
[334933748,1723656646015,-3017.17189591,0.00011,2]
[334933749,1723656646026,-1638.832655,0.00011,2]
[334933750,1723656646038,-569.62893995,0.00011,2]
[334933751,1723656646050,-3187.19048631,0.00011,2]
[334933752,1723656646061,-1644.15644672,0.00011,2]
[334933753,1723656646072,-920.11067912,0.00011,2]
[334933754,1723656646084,-20537.74473871,0.00011,2]
[334933755,1723656646105,-1492.69739753,0.00011,2]
[334933756,1723656646117,-2630.82659408,0.00011,2]
[334933757,1723656646128,-896.0,0.00011,2]
[334933758,1723656646139,-1384.9877526,0.00011,2]
[334933759,1723656646153,-3987.91705982,0.00011,2]
[334933760,1723656646164,-647.98410705,0.00011,2]
[334933761,1723656646175,-371.08009368,0.00011,2]
[334933762,1723656646186,-950.81443091,0.00011,2]
[334933763,1723656646197,-3651.45990221,0.00011,2]
[334933764,1723656646216,-6846.23117304,0.00011,2]
[334933765,1723656646227,-2273.338545,0.00011,2]
[334933766,1723656646238,-6223.91249305,0.00011,2]
[334933767,1723656646253,-1306.89059751,0.00011,2]
[334933768,1723656646264,-1576.40621,0.00011,2]
[334933769,1723656646275,-4371.77553368,0.00011,2]
[334933770,1723656646289,-1499.90008,0.00011,2]
[334933771,1723656646300,-493.09011844,0.00011,2]
[334933772,1723656646320,-48751.96682396,0.00011,2]
[334933773,1723656646331,-453.08776319,0.00011,2]
[334933815,1723656794912,580.13,9.866e-05,2]
[334933816,1723656823351,176.71,9.867e-05,2]
[334933817,1723656919609,185.38,9.864e-05,2]
[334933818,1723656928487,1925.52,9.867e-05,2]
[334933819,1723657016399,200.26,9.866e-05,2]
[334933820,1723657063437,326.2,8.219e-05,2]
[334933821,1723657083484,250.0,9.866e-05,2]
[334933823,1723657190666,480.0,9.865e-05,2]
[334933825,1723657486042,185.4,9.881e-05,2]
[334933826,1723657534109,309.89,8.219e-05,2]
[334933827,1723657536611,200.26,9.888e-05,2]
[334933832,1723657564743,250.0,9.888e-05,2]
[334933868,1723657764430,616.0,9.879e-05,2]
[334933879,1723657831979,-550.0,0.0001,2]
[334933880,1723657831988,-309.89,0.0001047,2]
[334933881,1723657831998,-500.0,0.000106,3]
[334933882,1723657832008,-1000.0,0.000107,3]
[334933883,1723657832017,-150.0,0.00010719,2]
[334933884,1723657832029,-150.0,0.00010725,2]
[334933885,1723657832039,-150.0,0.00010725,2]
[334933886,1723657832049,-62.7824281,0.00010726,2]
[334933887,1723657832060,-87.2175719,0.00010726,2]
[334933888,1723657832070,-150.0,0.00010726,2]
[334933889,1723657832079,-150.0,0.00010728,2]
[334933890,1723657832089,-150.0,0.00010742,2]
[334933891,1723657832098,-999.99,0.00010742,2]
[334933892,1723657832107,-150.0,0.00010747,2]
[334933893,1723657832117,-300.0,0.00010747,2]
[334933894,1723657832126,-3937.88564935,0.00010747,2]
[334933895,1723657832136,-150.0,0.00010748,2]
[334933896,1723657832145,-150.99,0.00010748,2]
[334933897,1723657832155,-9999.99,0.00010748,2]
[334933898,1723657832164,-9298.74,0.00010748,2]
[334933899,1723657832174,-300.0,0.00010749,2]
[334933900,1723657832183,-331.74,0.00010749,2]
[334933901,1723657832193,-150.0,0.00010754,2]
[334933902,1723657832202,-150.0,0.00010755,2]
[334933903,1723657832212,-1500.0,0.0001076,2]
[334933904,1723657832221,-1500.0,0.00010767,2]
[334933905,1723657832231,-150.0,0.0001077,2]
[334933906,1723657832241,-150.0,0.00010771,2]
[334933907,1723657832251,-150.0,0.00010776,2]
[334933908,1723657832261,-150.0,0.00010779,2]
[334933911,1723657832270,-150.0,0.00010781,2]
[334933914,1723657832290,-150.0,0.00010782,2]
[334933917,1723657832299,-150.0,0.00010783,2]
[334933919,1723657832309,-150.0,0.00010784,2]
[334933922,1723657832318,-150.0,0.00010788,2]
[334933925,1723657832328,-150.0,0.00010788,2]
[334933926,1723657832337,-150.0,0.00010788,2]
[334933927,1723657832347,-1500.0,0.00010797,2]
[334933928,1723657832356,-150.0,0.00010798,2]
[334933929,1723657832366,-150.0,0.00010799,2]
[334933930,1723657832375,-150.0,0.00010799,2]
[334933931,1723657832385,-1500.0,0.000108,3]
[334933932,1723657832395,-150.0,0.00010805,2]
[334933933,1723657832404,-150.0,0.00010806,2]
[334933934,1723657832414,-150.0,0.00010808,2]
[334933935,1723657832424,-150.0,0.00010809,2]
[334933936,1723657832433,-150.0,0.00010816,2]
[334933937,1723657832443,-150.0,0.00010822,2]
[334933938,1723657832453,-150.0,0.00010822,2]
[334933939,1723657832462,-150.0,0.00010823,2]
[334933940,1723657832472,-150.0,0.00010827,2]
[334933941,1723657832481,-150.0,0.00010828,2]
[334933942,1723657832490,-150.0,0.0001083,2]
[334933943,1723657832500,-150.0,0.00010835,2]
[334933944,1723657832509,-150.0,0.00010837,2]
[334933945,1723657832518,-1447.96647464,0.0001084,2]
[334933946,1723657832536,-150.0,0.00010842,2]
[334933947,1723657832546,-150.0,0.00010846,2]
[334933948,1723657832556,-150.0,0.00010847,2]
[334933949,1723657832566,-150.0,0.00010853,2]
[334933950,1723657832576,-150.0,0.00010855,2]
[334933951,1723657832586,-150.0,0.0001086,2]
[334933952,1723657832597,-150.0,0.0001086,2]
[334933953,1723657832606,-150.0,0.00010865,2]
[334933954,1723657832616,-150.0,0.00010865,2]
[334933955,1723657832626,-1138.4049792,0.00010871,2]
[334933956,1723657832636,-150.0,0.00010871,2]
[334933957,1723657832646,-150.0,0.00010872,2]
[334933958,1723657832659,-150.0,0.00010875,2]
[334933959,1723657832669,-1500.0,0.00010876,2]
[334933960,1723657832679,-150.0,0.00010888,2]
[334933961,1723657832688,-150.0,0.00010889,2]
[334933962,1723657832699,-975.8154,0.0001089,2]
[334933963,1723657832708,-150.0,0.00010891,2]
[334933964,1723657832718,-150.0,0.00010893,2]
[334933965,1723657832729,-150.0,0.00010895,2]
[334933966,1723657832739,-150.0,0.00010896,2]
[334933967,1723657832748,-610.09299413,0.00010896,2]
[334933968,1723657832758,-192.46545999,0.000109,2]
[334933969,1723657832767,-2100.0,0.000109,3]
[334933970,1723657832778,-185.98085818,0.000109,2]
[334933971,1723657832788,-5689.67442709,0.000109,2]
[334933972,1723657832798,-150.0,0.00010901,2]
[334933973,1723657832808,-150.0,0.00010903,2]
[334933974,1723657832817,-150.0,0.00010906,2]
[334933975,1723657832827,-155.34132076,0.00010912,2]
[334933976,1723657832836,-150.0,0.00010913,2]
[334933977,1723657832845,-259.79108391,0.00010916,2]
[334933978,1723657832855,-150.0,0.00010917,2]
[334933979,1723657832864,-150.0,0.0001092,2]
[334933980,1723657832873,-155.0,0.0001092,2]
[334933981,1723657832882,-1068.05,0.0001092,2]
[334933982,1723657832892,-150.0,0.00010921,2]
[334933983,1723657832901,-150.0,0.00010923,2]
[334933984,1723657832911,-150.0,0.00010923,2]
[334933985,1723657832920,-150.0,0.00010924,2]
[334933986,1723657832930,-150.0,0.00010927,2]
[334933987,1723657832940,-155.0,0.00010927,2]
[334933988,1723657832950,-1500.0,0.00010928,2]
[334933989,1723657832959,-150.0,0.00010931,2]
[334933990,1723657832969,-150.0,0.00010932,2]
[334933991,1723657832978,-150.0,0.00010933,2]
[334933992,1723657832988,-150.0,0.00010939,2]
[334933993,1723657832998,-150.0,0.00010942,2]
[334933994,1723657833008,-155.0,0.00010944,2]
[334933995,1723657833018,-155.0,0.00010944,2]
[334933996,1723657833029,-150.0,0.00010945,2]
[334933997,1723657833039,-150.0,0.0001095,2]
[334933998,1723657833049,-975.8154,0.0001095,2]
[334933999,1723657833059,-150.0,0.00010953,2]
[334934000,1723657833069,-150.0,0.00010955,2]
[334934001,1723657833079,-150.0,0.00010957,2]
[334934002,1723657833088,-150.0,0.00010958,2]
[334934003,1723657833098,-440.08291615,0.00010958,2]
[334934004,1723657833107,-150.0,0.00010959,2]
[334934005,1723657833117,-150.0,0.00010961,2]
[334934006,1723657833127,-363.05691439,0.00010962,2]
[334934007,1723657833137,-1500.0,0.00010963,2]
[334934008,1723657833147,-150.0,0.00010967,2]
[334934009,1723657833157,-150.0,0.00010967,2]
[334934010,1723657833168,-150.0,0.00010971,2]
[334934011,1723657833178,-150.0,0.00010975,2]
[334934012,1723657833188,-150.0,0.00010976,2]
[334934013,1723657833197,-150.0,0.00010977,2]
[334934014,1723657833207,-150.0,0.00010978,2]
[334934015,1723657833218,-150.0,0.00010983,2]
[334934016,1723657833228,-150.0,0.00010989,2]
[334934017,1723657833238,-1793.67346242,0.00010997,2]
[334934018,1723657833248,-160.32123833,0.00010999,2]
[334934019,1723657833258,-43884.41203378,0.00011,2]
[334934020,1723657833274,-533.92040024,0.00011,2]
[334934021,1723657833287,-609.07369875,0.00011,2]
[334934022,1723657833298,-2595.45439401,0.00011,2]
[334934023,1723657833310,-159649.53267022,0.00011,2]
[334934024,1723657833322,-588.10718822,0.00011,2]
[334934025,1723657833334,-490.36861774,0.00011,2]
[334934026,1723657833345,-6441.05993492,0.00011,2]
[334934027,1723657833357,-544.0998858,0.00011,2]
[334934028,1723657833369,-315.04,0.00011,2]
[334934031,1723657838222,-620.4526773,0.00011,2]
[334934032,1723657838273,-649.025,0.00011,2]
[334934046,1723657839983,-2437.39358701,0.00011,2]
[334934048,1723657839995,-817.86703771,0.00011,2]
[334934049,1723657840040,-399.99550521,0.00011,2]
[334934050,1723657840052,-1129.10829927,0.00011,2]
[334934051,1723657840092,-136134.07792645,0.00011,2]
[334934052,1723657840103,-5063.96244553,0.00011,2]
[334934053,1723657840192,-676.24678858,0.00011,2]
[334934054,1723657840203,-679.32486265,0.00011,2]
[334934055,1723657840215,-2488.0179701,0.00011,2]
[334934056,1723657840235,-727.40483639,0.00011,2]
[334934069,1723657840449,-968.08777415,0.00011,2]
[334934525,1723657846372,-91036.55259148,0.00011,2]
[334934526,1723657846382,-4380.32546883,0.00011,2]
[334934527,1723657846394,-545.40061468,0.00011,2]
[334934528,1723657846405,-15642.51313637,0.00011,2]
[334934529,1723657846415,-27465.57611363,0.00011,2]
[334934891,1723658089231,278.9,8.358e-05,2]
[334934895,1723658551521,264.95,8.219e-05,2]
[334934896,1723658620328,2841.60373024,9.899e-05,2]
[334934981,1723659017192,251.7,8.219e-05,2]
[334935011,1723659032316,-250.0,9.904e-05,2]
[334935012,1723659032326,-200.0,9.91e-05,2]
[334935013,1723659032335,-200.0,9.91e-05,2]
[334935014,1723659032346,-1241.96129736,9.943e-05,2]
[334935015,1723659032358,-2695.92435199,9.943e-05,2]
[334935016,1723659032369,-492.8,9.952e-05,2]
[334935017,1723659032378,-167.85,9.962e-05,2]
[334935018,1723659032389,-7843.42564801,0.0001001,2]
[334935019,1723659033005,-4970.03435199,0.0001001,2]
[334935020,1723659033019,-155.0,0.00010026,2]